[Event "ESCC-65 2022"]
[Site "Lublin"]
[Date "2022.07.05"]
[Round "1.1"]
[White "Stokes, Michael"]
[Black "Dobosz, Henryk"]
[Result "0-1"]
[ECO "B23"]
[WhiteElo "2024"]
[BlackElo "2354"]
[Annotator "TA"]
[PlyCount "82"]
[EventDate "2022.07.05"]
[EventType "swiss"]
[EventCountry "POL"]
[SourceTitle "playchess.com"]
[Source "ChessBase"]
[SourceQuality "1"]
[TimeControl "40/5400+30:1800+30"]

{[%evp 9,82,-35,-21,-54,-38,-74,-69,-72,-39,-42,-42,-85,-72,-82,-64,-91,-94,-106,-93,-73,-75,-96,-90,-146,-121,-186,-91,-134,-134,-233,-232,-225,-204,-249,-227,-243,-152,-164,0,-79,-49,-514,-519,-733,-714,-723,-729,-726,-736,-963,-933,-957,-930,-964,-956,-900,-941,-885,-914,-922,-895,-1615,-970,-1184,-972,-988,0,-1154,-1137,-29989,-29990,-29991,-29992,-29992,-29992]} 1. e4 {[%emt 0:00:03]} c5 {[%emt 0:00:11]} 2. Nc3 {[%emt 0:00:05]} e6 {[%emt 0:00:28]} 3. f4 {[%emt 0:00:24]} d5 {[%emt 0:00:17]} 4. e5 {[%emt 0:01:41]} Nh6 {[%emt 0:00:16]} 5. Nf3 {[%emt 0:00:17]} Be7 {[%emt 0:00:57]} 6. Be2 {[%emt 0:07:26] B23: Closed Sicilian: Lines without g3.} Nc6 {[%emt 0:01:29]} 7. b3 {[%emt 0:00:28]} a6 {[%emt 0:02:30] [#]} 8. a4 $146 {[%emt 0:02:09] Black is slightly better.} ({Predecessor:} 8. Bb2 Nf5 9. Bd3 g6 10. Bxf5 gxf5 11. d4 Qc7 12. Ne2 h5 13. c3 b6 14. O-O {1-0 (39) Pedashenko,A (2033)-Karapetyan,G (1648) Kislovodsk 2015}) 8... b6 {[%emt 0:08:27]} 9. O-O {[%emt 0:05:19]} Bb7 {[%emt 0:00:08]} 10. Bd3 {[%emt 0:04:13] [#]} Nb4 $1 {[%emt 0:00:45]} 11. Qe2 {[%emt 0:02:24]} Rc8 {[%emt 0:04:22]} 12. Kh1 {[%emt 0:03:41]} Qd7 {[%emt 0:15:36]} 13. Bb2 {[%emt 0:03:56]} Nxd3 {[%emt 0:08:14]} 14. Qxd3 {[%emt 0:01:36]} Nf5 {[%emt 0:06:16]} 15. Ne2 {[%emt 0:18:05]} h5 {[%emt 0:12:54][%cal Bh7h5,Bh5h4][%mdl 32]} 16. Ng5 {[%emt 0:06:05]} ({White should play} 16. Ng3 Nxg3+ 17. hxg3) 16... h4 $17 {[%emt 0:01:03]} 17. Qh3 {[%emt 0:04:27]} (17. Ng1 $17 {is a better defense.}) 17... Rh6 {[%emt 0:04:29]} (17... d4 $19 {is more deadly.} 18. Kg1 c4 19. bxc4 Rxc4) 18. d3 {[%emt 0:09:19]} f6 {[%emt 0:05:51]} 19. exf6 {[%emt 0:03:01]} (19. Nf3 $17) 19... gxf6 $19 {[%emt 0:00:09]} 20. Nf3 {[%emt 0:00:39]} d4 {[%emt 0:01:08]} 21. Rf2 {[%emt 0:03:33]} a5 {[%emt 0:02:03]} 22. Re1 {[%emt 0:01:29]} Qd5 {[%emt 0:01:58]} 23. c4 {[%emt 0:06:52]} Qc6 {[%emt 0:02:30]} (23... Qd6 $19 {aiming for ...Kd7.} 24. Nexd4 cxd4) 24. Bxd4 {[%emt 0:01:21]} Qd7 {[%emt 0:00:46] [#] Strongly threatening ...Bxf3.} ({Don't play} 24... cxd4 25. Nexd4 Nxd4 26. Nxd4 $16) (24... Rd8 $5 {[%cal Rc5d4]} 25. Bb2 Rxd3 $17) 25. Qg4 {[%emt 0:02:25][%mdl 8192] Black converts the advantage convincingly.} Kf7 {[%emt 0:00:39] Threatens to win with ...h3.} ({Stronger than} 25... cxd4 26. Qg8+ Bf8 27. Nexd4 Nxd4 28. Nxd4 $14) 26. Ng5+ {[%emt 0:07:11]} fxg5 {[%emt 0:00:11]} 27. fxg5 {[%emt 0:00:04]} Rg8 {[%emt 0:00:44]} 28. Be3 {[%emt 0:00:40]} Ke8 {[%emt 0:05:18]} 29. Bf4 {[%emt 0:01:49]} h3 {[%emt 0:00:55]} 30. Ng3 {[%emt 0:01:02]} Rh4 {[%emt 0:01:48]} 31. Qe2 {[%emt 0:00:40]} Nd4 {[%emt 0:04:17]} 32. Qe5 {[%emt 0:00:16]} Bxg2+ {[%emt 0:01:36]} 33. Kg1 {[%emt 0:00:05]} Nf3+ {[%emt 0:00:15]} 34. Rxf3 {[%emt 0:00:06]} Bxf3 {[%emt 0:00:02]} 35. Be3 {[%emt 0:02:12]} Bb7 {[%emt 0:01:45] And now ...Bd6 would win.} 36. Qb8+ {[%emt 0:00:46]} Qc8 {[%emt 0:00:17]} 37. Qe5 {[%emt 0:00:15]} Qd7 {[%emt 0:01:34]} 38. Qb8+ {[%emt 0:00:22]} Bd8 {[%emt 0:00:15][%cal Oh4d4] Hoping for ...Rd4!} 39. Nf5 {[%emt 0:01:42]} Rg4+ {[%emt 0:00:20] Black mates.} 40. Ng3 {[%emt 0:00:00]} Qc6 {[%emt 0:00:00][%csl Gb7,Gh3][%cal Rc6g2]} 41. Re2 {[%emt 0:02:47]} Rf8 {[%emt 0:02:36] Weighted Error Value: White=0.98/Black=0.37} 0-1

[Event "ESCC-65 2022"]
[Site "Lublin"]
[Date "2022.07.05"]
[Round "1.2"]
[White "Bogdanov, Valentin"]
[Black "Gasik, Piotr"]
[Result "1-0"]
[ECO "B14"]
[WhiteElo "2333"]
[BlackElo "1990"]
[Annotator "TA"]
[PlyCount "55"]
[EventDate "2022.07.05"]
[EventType "swiss"]
[EventCountry "POL"]
[SourceTitle "playchess.com"]
[Source "ChessBase"]
[SourceQuality "1"]
[TimeControl "40/5400+30:1800+30"]

{[%evp 16,55,16,0,0,0,0,0,0,0,0,-18,-14,-13,-13,-15,42,32,222,221,228,229,198,189,204,195,293,309,424,375,575,583,595,573,839,531,819,784,1005,858,827,818]} 1. e4 {[%emt 0:00:05]} c6 {[%emt 0:00:09]} 2. d4 {[%emt 0:00:46]} d5 {[%emt 0:00:06]} 3. exd5 {[%emt 0:00:15]} cxd5 {[%emt 0:00:09]} 4. c4 {[%emt 0:00:07]} e6 {[%emt 0:01:51]} 5. Nc3 {[%emt 0:00:16]} Nf6 {[%emt 0:00:53]} 6. Nf3 {[%emt 0:00:42]} Be7 {[%emt 0:00:49]} 7. Bd3 {[%emt 0:04:00]} Nc6 {[%emt 0:02:36]} 8. O-O {[%emt 0:02:00]} O-O {[%emt 0:01:31]} 9. Re1 {[%emt 0:03:29]} Nb4 {[%emt 0:04:23] B14: Caro-Kann: Panov-Botvinnik Attack with 5...e6 and 5...g6.} 10. Bf1 {[%emt 0:03:32]} dxc4 {[%emt 0:02:50]} 11. Bxc4 {[%emt 0:00:09]} b6 {[%emt 0:00:12] The position is equal.} 12. Ne5 {[%emt 0:07:25]} Bb7 {[%emt 0:02:43]} 13. Bg5 {[%emt 0:03:58][%cal Oe5f7]} Nfd5 {[%emt 0:06:32]} 14. Bxe7 {[%emt 0:02:51]} Qxe7 {[%emt 0:08:33] [#]} 15. Qd2 $146 {[%emt 0:07:36] Prevents Nf4.} ({Predecessor:} 15. Ne4 Rfe8 16. Rc1 Nf6 17. Ng5 Rf8 18. Nexf7 Nbd5 19. Rxe6 Qxe6 20. Nxe6 Rxf7 21. Qb3 {1-0 (28) Lehmann,R (1826)-Altenburg,R (1772) Mecklenburg VP 2010}) 15... Rad8 {[%emt 0:08:19]} (15... Rac8 $11) 16. a3 $14 {[%emt 0:02:44]} Na6 {[%emt 0:02:01] This move loses the game for Black.} (16... Nxc3 $14 17. axb4 Ne4) 17. Nxd5 $18 {[%emt 0:01:08]} Rxd5 {[%emt 0:15:04]} 18. Bxd5 {[%emt 0:02:02]} Bxd5 {[%emt 0:00:12]} 19. Nd3 {[%emt 0:04:21]} Qb7 {[%emt 0:03:33]} 20. Nf4 {[%emt 0:02:14]} Bc6 {[%emt 0:00:13]} (20... Nc7 {was necessary.} 21. Rac1 Rd8) 21. Rac1 {[%emt 0:01:57][%cal Ba1c1,Bc1c3,Bc3g3][%mdl 32]} Rd8 {[%emt 0:01:54]} 22. Rc3 {[%emt 0:02:01] [#] aiming for Nh5.} h6 {[%emt 0:04:25]} (22... Rd6 $142 23. d5 exd5) 23. Rg3 {[%emt 0:03:39] Threatens to win with Nh5. White is clearly winning.} Be4 {[%emt 0:03:06]} 24. Qe3 {[%emt 0:02:13] Nh5 is the strong threat.} Bf5 {[%emt 0:01:39]} 25. d5 {[%emt 0:03:09]} Nc5 {[%emt 0:04:25]} 26. Qe5 {[%emt 0:03:03][%csl Gg3][%cal Re5g7] [#] Against Ne4} g6 {[%emt 0:02:37]} 27. dxe6 {[%emt 0:01:44]} Nxe6 {[%emt 0:04:55]} 28. Qxf5 {[%emt 0:01:27] Weighted Error Value: White=0.27 (precise) /Black=0.63} 1-0

[Event "ESCC-65 2022"]
[Site "Lublin"]
[Date "2022.07.05"]
[Round "1.3"]
[White "Sciupokas, Arunas"]
[Black "Renman, Nils-Gustaf"]
[Result "0-1"]
[ECO "C02"]
[WhiteElo "1960"]
[BlackElo "2311"]
[Annotator "TA"]
[PlyCount "58"]
[EventDate "2022.07.05"]
[EventType "swiss"]
[EventCountry "POL"]
[SourceTitle "playchess.com"]
[Source "ChessBase"]
[SourceQuality "1"]
[TimeControl "40/5400+30:1800+30"]

{[%evp 14,58,0,0,0,7,35,-30,-30,-30,-36,-39,-27,-28,-42,-47,-50,-47,-50,-47,-46,-120,-49,-124,-115,-228,-231,-231,-231,-231,-231,-225,-223,-226,-226,-226,-228,-363,-291,-348,-326,-404,-374,-522,-458,-799,-789]} 1. e4 {[%emt 0:00:05]} e6 {[%emt 0:00:08]} 2. d4 {[%emt 0:00:13]} d5 {[%emt 0:00:08]} 3. e5 {[%emt 0:00:09]} c5 {[%emt 0:00:09]} 4. c3 Nc6 {[%emt 0:00:33][%cal Bb8c6,Bc6b4,Bb4c2][%mdl 32]} 5. Nf3 {[%emt 0:00:22]} Qb6 {[%emt 0:00:13]} 6. Be2 {[%emt 0:01:39]} cxd4 {[%emt 0:01:37]} 7. cxd4 {[%emt 0:00:12]} Nh6 {[%emt 0:00:19]} 8. Bd3 {[%emt 0:19:09] 8.Bxh6 is setting a new trend.} Bd7 {[%emt 0:00:54] C02: French: Advance Variation.} (8... Nxd4 9. Nxd4 Bc5 10. Be3 $1 $16) 9. Bc2 {[%emt 0:00:14]} ({Don't play} 9. Bxh6 Qxb2 10. Nbd2 Nb4 $17) 9... Nb4 {[%emt 0:01:25]} 10. Nc3 {[%emt 0:10:39]} (10. Bxh6 $14 gxh6 11. O-O) 10... Nxc2+ $11 {[%emt 0:00:29] Black has an edge.} 11. Qxc2 {[%emt 0:00:07]} Nf5 {[%emt 0:00:27]} 12. Qd3 {[%emt 0:09:41]} Rc8 {[%emt 0:07:18]} 13. O-O {[%emt 0:12:53]} Bb4 {[%emt 0:14:49]} 14. Rd1 {[%emt 0:07:00]} Bxc3 {[%emt 0:07:06]} 15. bxc3 {[%emt 0:00:12]} Bb5 {[%emt 0:00:12]} 16. Qd2 {[%emt 0:06:27]} Qa5 {[%emt 0:02:21] [#]} 17. Qb2 $146 {[%emt 0:03:52] [#]} ({White should play} 17. a4 $15) ({Predecessor:} 17. Bb2 Rc4 18. Qg5 h6 19. Qh5 Ra4 20. a3 Be2 21. Rd2 Bxf3 22. Qxf3 O-O 23. g4 {1-0 (33) Turcheniac,M (2008)-Patsuk,E (2054) St Petersburg 2008}) 17... O-O {[%emt 0:05:52]} (17... Rxc3 $2 18. Bd2 $18) ({Better is} 17... Ba6 $1 $17 18. Bg5 Qxc3 19. Qxc3 Rxc3) 18. Rb1 {[%emt 0:09:29]} (18. Bf4 $15) 18... Ba6 $17 {[%emt 0:05:18] Black is more active.} 19. Qb4 {[%emt 0:11:38]} (19. g4 $17 Qxc3 20. Kg2) 19... Qxb4 $19 {[%emt 0:02:07]} ({Weaker is} 19... Qxa2 20. Rd2 Qc4 21. Ba3 $17) 20. cxb4 {[%emt 0:00:08] Threatens to win with b5.} Be2 {[%emt 0:00:12]} 21. Rd2 {[%emt 0:02:40]} Bxf3 {[%emt 0:00:15]} 22. gxf3 {[%emt 0:00:02]} Rc4 {[%emt 0:00:25]} 23. Rd3 {[%emt 0:01:09]} Nxd4 {[%emt 0:01:45]} ({Not} 23... Rxd4 $2 24. Rxd4 Nxd4 25. f4) 24. Kg2 {[%emt 0:00:54]} Nc6 {[%emt 0:07:37]} 25. Ba3 {[%emt 0:02:46]} (25. Ra3 {was called for.}) 25... b5 {[%emt 0:01:25]} 26. Re3 {[%emt 0:00:33]} Rc8 {[%emt 0:00:26]} 27. Kg3 {[%emt 0:00:19]} g5 {[%emt 0:02:37]} 28. Rb2 {[%emt 0:00:52]} Kg7 {[%emt 0:00:15]} 29. Rbe2 {[%emt 0:00:21]} (29. Kg2 $142) 29... Nd4 {[%emt 0:00:20] Weighted Error Value: White=0.58/Black=0.13 (very precise)} 0-1

[Event "ESCC-65 2022"]
[Site "Lublin"]
[Date "2022.07.05"]
[Round "1.4"]
[White "Stebbings, Anthony J"]
[Black "Rak, Tomasz"]
[Result "0-1"]
[ECO "E42"]
[WhiteElo "2283"]
[BlackElo "1887"]
[Annotator "TA"]
[PlyCount "78"]
[EventDate "2022.07.05"]
[EventType "swiss"]
[EventCountry "POL"]
[SourceTitle "playchess.com"]
[Source "ChessBase"]
[SourceQuality "1"]
[TimeControl "40/5400+30:1800+30"]

{[%evp 11,78,26,25,21,43,40,45,46,37,46,52,52,43,26,37,30,25,12,58,29,68,31,60,26,95,87,160,184,133,27,104,26,89,89,58,0,0,0,0,0,0,0,0,-59,-50,-216,-213,-206,-208,-219,-214,-227,-166,-331,-329,-372,-356,-568,-559,-529,-518,-495,-510,-1139,-1108,-29996,-29997,-29997,-29998]} 1. d4 {[%emt 0:00:02]} Nf6 {[%emt 0:00:03]} 2. c4 {[%emt 0:00:05]} e6 {[%emt 0:00:02]} 3. Nc3 {[%emt 0:00:09]} Bb4 {[%emt 0:00:13]} 4. e3 {[%emt 0:00:07]} c5 {[%emt 0:00:08]} 5. Nge2 {[%emt 0:00:57]} d6 {[%emt 0:00:18]} 6. a3 {[%emt 0:00:23]} Ba5 {[%emt 0:00:10]} 7. g3 {[%emt 0:06:11] E42: Nimzo-Indian: Rubinstein: 4...c5 5 Ne2.} Bd7 {[%emt 0:06:08]} 8. Bg2 {[%emt 0:00:56]} Bc6 {[%emt 0:00:14]} 9. d5 {[%emt 0:00:52] White is slightly better.} exd5 {[%emt 0:00:13]} 10. cxd5 {[%emt 0:00:07]} Bd7 {[%emt 0:00:11]} 11. O-O {[%emt 0:01:47]} O-O {[%emt 0:00:44]} 12. e4 {[%emt 0:08:33]} Na6 {[%emt 0:07:08] [#]} 13. a4 $146 {[%emt 0:13:44]} ({Predecessor:} 13. Bf4 Qe7 14. e5 dxe5 15. Bg5 Qd6 16. Bxf6 Qxf6 17. d6 Rab8 18. Rc1 c4 19. f4 {½-½ (27) Swapnil,S (2469)-Gorbatov,A (2350) Albena 2013}) 13... Nb4 {[%emt 0:03:14]} 14. Bf4 {[%emt 0:04:14]} Qb8 {[%emt 0:01:11]} (14... Qe7 $11 {should be considered.}) 15. h3 {[%emt 0:02:05]} Rc8 {[%emt 0:03:27]} 16. Qd2 {[%emt 0:02:36]} a6 {[%emt 0:01:46]} 17. Ra3 {[%emt 0:03:01]} Be8 {[%emt 0:09:09]} (17... c4 $11) 18. g4 $16 {[%emt 0:06:50]} Nd7 {[%emt 0:02:30]} ({Black should try} 18... Bd7) 19. Ng3 $1 {[%emt 0:00:12] Hoping for Nf5.} g6 {[%emt 0:01:11] [#] Prevents Nf5.} (19... Ne5 $18 20. Nf5 Bd8) 20. h4 {[%emt 0:09:02]} (20. Nf5 $1 $16 {[%mdl 512]} gxf5 21. exf5) 20... Bd8 {[%emt 0:03:07] [#]} (20... c4 $11 {remains equal.}) 21. g5 {[%emt 0:05:40]} (21. Nd1 $1 $16) 21... Be7 {[%emt 0:03:52]} (21... c4 $11) 22. h5 {[%emt 0:01:04]} Ne5 {[%emt 0:02:01][%cal Bd7e5,Be5c4,Bc4e3,Be3f1][%mdl 32]} 23. Qe2 {[%emt 0:03:00]} (23. Nd1 $14) 23... Bd7 $11 {[%emt 0:02:16]} 24. Be3 {[%emt 0:03:42]} Re8 {[%emt 0:02:57]} 25. f3 {[%emt 0:08:43]} Qd8 {[%emt 0:03:03]} 26. f4 {[%emt 0:01:37]} ({Better is} 26. Nd1 $11) 26... Bg4 $1 $15 {[%emt 0:00:49]} 27. Qf2 {[%emt 0:00:29]} Nc4 {[%emt 0:03:14]} 28. Rb3 $2 {[%emt 0:00:26]} (28. Nd1 $15) 28... Nd3 $19 {[%emt 0:04:43]} ({Worse is} 28... gxh5 29. Nd1 $15) 29. Qc2 {[%emt 0:00:33]} Nxe3 {[%emt 0:01:08]} 30. Qxd3 {[%emt 0:00:05]} Nxf1 {[%emt 0:02:34]} 31. Qxf1 {[%emt 0:02:47]} gxh5 {[%emt 0:05:06][%cal Bg6h5,Bh5h4][%mdl 32]} 32. Rxb7 $2 {[%emt 0:00:45]} (32. Bf3) 32... Rb8 {[%emt 0:02:47]} 33. Qxa6 {[%emt 0:02:11]} h4 {[%emt 0:08:01]} 34. Nf5 {[%emt 0:03:09]} (34. Nge2 {keeps fighting.}) 34... Bxf5 {[%emt 0:00:33]} 35. exf5 {[%emt 0:00:02]} Rxb7 {[%emt 0:00:39]} 36. Qxb7 {[%emt 0:00:04]} Bxg5 {[%emt 0:06:36]} 37. fxg5 {[%emt 0:00:23]} (37. Qb5 $142 Bxf4 38. Ne4) 37... Qxg5 {[%emt 0:00:04] ( -> ...Re1+)} 38. Kf1 {[%emt 0:05:31] Inhibits Re1+.} Qf4+ {[%emt 0:00:26]} 39. Kg1 {[%emt 0:00:08]} Re1+ {[%emt 0:00:18] Black used his chance.  Weighted Error Value: White=0.62/Black=0.19 (very precise)} 0-1

[Event "ESCC-65 2022"]
[Site "Lublin"]
[Date "2022.07.05"]
[Round "1.5"]
[White "Scowen, Roger S"]
[Black "Syre, Christian"]
[Result "0-1"]
[ECO "B32"]
[WhiteElo "1864"]
[BlackElo "2243"]
[Annotator "TA"]
[PlyCount "36"]
[EventDate "2022.07.05"]
[EventType "swiss"]
[EventCountry "POL"]
[SourceTitle "playchess.com"]
[Source "ChessBase"]
[SourceQuality "1"]
[TimeControl "40/5400+30:1800+30"]

{[%evp 9,36,7,16,-33,-31,-85,-64,-120,-45,-101,-75,-91,-81,-91,-52,-65,-72,-123,-89,-128,-147,-204,-207,-331,-345,-347,-344,-335,-314]} 1. e4 {[%emt 0:00:06]} c5 {[%emt 0:00:42]} 2. Nf3 {[%emt 0:00:08]} Nc6 {[%emt 0:00:07]} 3. d4 {[%emt 0:00:11]} cxd4 {[%emt 0:00:05]} 4. Nxd4 {[%emt 0:00:02]} e5 {[%emt 0:01:06]} 5. Nb3 {[%emt 0:02:40]} Nf6 {[%emt 0:09:32]} 6. f3 {[%emt 0:11:59] B32: Sicilian: Löwenthal and Kalashnikov Variations.} (6. Bc4 $11) 6... d5 $15 {[%emt 0:08:46]} 7. exd5 {[%emt 0:02:32]} ({White should play} 7. Bg5 $15) 7... Nxd5 $17 {[%emt 0:01:00]} 8. c4 {[%emt 0:03:22]} (8. Nc3 $15 Bb4 9. Bd2) 8... Ndb4 {[%emt 0:00:53] Black is more active.} (8... Bb4+ $17 9. Ke2 Nf4+ 10. Bxf4 Qxd1+ 11. Kxd1 exf4) 9. Qxd8+ {[%emt 0:05:00]} ({Better is} 9. a3 $15 Qxd1+ 10. Kxd1) 9... Nxd8 {[%emt 0:01:55]} 10. Na3 {[%emt 0:05:22] [#] Prevents Nc2+.} Ne6 $146 {[%emt 0:15:53]} ({Predecessor:} 10... Bf5 11. Be2 Ne6 12. O-O Be7 13. Be3 O-O 14. Rfd1 Rfe8 15. Bf2 Nf4 16. Bf1 Nfd3 17. Bxd3 Nxd3 {0-1 (34) Hoffmann,A (1834)-Judas,S (2099) Grossenseebach 2005}) 11. Be3 {[%emt 0:04:30]} Be7 {[%emt 0:03:32]} 12. Kf2 {[%emt 0:08:32]} O-O {[%emt 0:00:11]} 13. g3 {[%emt 0:12:16]} (13. Nb5 $142) 13... Bd7 {[%emt 0:04:09][%cal Bc8d7,Bd7a4,Ba4c6][%mdl 32]} 14. Rd1 {[%emt 0:06:11]} Ba4 {[%emt 0:01:22]} 15. Rd2 {[%emt 0:05:43]} (15. Nb1 $17) 15... Nxa2 {[%emt 0:26:29]} 16. Na5 {[%emt 0:00:30]} (16. Na1 {was called for.}) 16... Bb4 $19 {[%emt 0:01:07][%csl LRa5,LRd2] Black has a decisive advantage.} 17. Rd5 {[%emt 0:00:03]} b6 {[%emt 0:02:33]} 18. Nb7 {[%emt 0:05:44]} Bc6 {[%emt 0:01:25][%csl LRb7,LRd5] Weighted Error Value: White=0.41/Black=0.16 (very precise)} 0-1

[Event "ESCC-65 2022"]
[Site "Lublin"]
[Date "2022.07.05"]
[Round "1.6"]
[White "Petran, Peter"]
[Black "Severcan, Sedat Sabri"]
[Result "1-0"]
[ECO "A20"]
[WhiteElo "2234"]
[BlackElo "1849"]
[Annotator "TA"]
[PlyCount "118"]
[EventDate "2022.07.05"]
[EventType "swiss"]
[EventCountry "POL"]
[SourceTitle "playchess.com"]
[Source "ChessBase"]
[SourceQuality "1"]
[TimeControl "40/5400+30:1800+30"]

{[%evp 9,118,3,7,0,7,10,14,17,33,8,20,16,23,26,23,26,57,35,41,58,54,50,38,9,12,20,12,-16,46,6,50,15,13,15,25,16,16,18,80,58,51,43,37,39,40,37,39,10,80,64,71,55,71,57,70,63,68,63,66,31,80,72,106,97,118,111,157,110,242,246,238,250,258,251,258,247,260,260,242,242,247,243,242,225,1166,1129,1320,1177,1249,1220,6280,4610,5081,5057,10110,8598,2402,1775,29969,29970,29973,6606,29972,29975,29975,29974,29976,29977,29976,29978,29986]} 1. c4 {[%emt 0:00:04]} e5 {[%emt 0:00:00]} 2. g3 {[%emt 0:00:07]} c6 {[%emt 0:00:30]} 3. d4 {[%emt 0:00:54]} exd4 {[%emt 0:01:11]} 4. Qxd4 {[%emt 0:00:07]} Nf6 {[%emt 0:03:27]} 5. Nc3 {[%emt 0:00:25]} Na6 {[%emt 0:09:03]} 6. Bg2 {[%emt 0:00:32] A23: English Opening: 1...e5 2 Nc3 Nf6 3 g3 c6.} Bc5 {[%emt 0:05:01]} 7. Qe5+ {[%emt 0:00:19]} Qe7 {[%emt 0:00:46]} 8. Qxe7+ {[%emt 0:00:08] The position is equal.} Bxe7 {[%emt 0:03:28]} 9. Nh3 {[%emt 0:01:00][%cal Bg1h3,Bh3f4,Bf4d3][%mdl 32] [#]} O-O $146 {[%emt 0:06:08]} ({Predecessor:} 9... Nb4 10. O-O d5 11. cxd5 Nbxd5 12. Bd2 O-O 13. Nf4 Nxf4 14. Bxf4 Be6 15. Rfd1 Rfd8 16. Be3 {½-½ (16) Ackley,P (1993)-David,I (1891) England 2017}) 10. Nf4 {[%emt 0:00:31]} Bb4 {[%emt 0:02:35]} 11. Bd2 {[%emt 0:00:09]} Re8 {[%emt 0:01:01]} 12. O-O {[%emt 0:03:39]} Nc5 {[%emt 0:03:04]} 13. Rad1 {[%emt 0:01:47]} Ne6 {[%emt 0:05:36]} 14. Nd3 {[%emt 0:09:45]} Bf8 {[%emt 0:07:59]} 15. e3 {[%emt 0:08:30]} Rb8 {[%emt 0:09:44]} 16. a3 {[%emt 0:06:01]} d6 {[%emt 0:05:55]} 17. b4 {[%emt 0:00:28]} Bd7 {[%emt 0:01:50]} 18. Bc1 {[%emt 0:01:45]} Ng5 {[%emt 0:02:14]} (18... Nc7 $11) 19. Bb2 {[%emt 0:02:33]} Nge4 {[%emt 0:04:07]} 20. Nxe4 {[%emt 0:02:18]} Nxe4 {[%emt 0:01:09]} 21. f3 {[%emt 0:06:53]} Nf6 {[%emt 0:02:50]} 22. e4 {[%emt 0:00:26][%cal Be3e4,Be4e5][%mdl 32]} Be6 {[%emt 0:03:29]} 23. Rc1 {[%emt 0:00:09]} d5 {[%emt 0:03:12]} (23... a5 $11) 24. cxd5 {[%emt 0:00:16]} cxd5 {[%emt 0:00:18]} 25. e5 {[%emt 0:00:18]} Nd7 {[%emt 0:00:31]} 26. f4 {[%emt 0:01:03] [#] Hoping for f5.} g6 {[%emt 0:01:02]} 27. Bd4 {[%emt 0:03:00]} Nb6 {[%emt 0:01:10]} 28. Rc7 {[%emt 0:08:58]} Be7 {[%emt 0:05:27]} (28... Rec8 $11 {remains equal.} 29. Rxc8 Rxc8) 29. Rfc1 {[%emt 0:09:46]} Bd8 {[%emt 0:01:56]} 30. R7c3 {[%emt 0:04:57] White is much more active. The black rooks are badly placed.} Na4 {[%emt 0:03:44]} 31. R3c2 {[%emt 0:00:08]} ({Much worse is} 31. Bxa7 Nxc3 32. Rxc3 Ra8 $15) 31... Nb6 {[%emt 0:01:02]} 32. Ra2 {[%emt 0:10:22]} a6 {[%emt 0:02:57]} 33. a4 {[%emt 0:02:00]} Nc4 {[%emt 0:00:48]} 34. a5 {[%emt 0:00:13]} Be7 {[%emt 0:00:26]} (34... b6 $14) 35. Bc5 $16 {[%emt 0:03:50]} Bxc5+ {[%emt 0:01:05]} 36. Nxc5 {[%emt 0:00:15]} Red8 {[%emt 0:00:38]} 37. Kf2 {[%emt 0:00:20]} Kf8 {[%emt 0:00:29]} ({Better is} 37... Bc8) 38. Bf1 {[%emt 0:03:03]} (38. Nxe6+ $142 fxe6 39. Bf1) 38... Rdc8 {[%emt 0:01:04] Loses the game.} (38... Bc8 $16 {was necessary.} 39. Bxc4 dxc4 40. Rxc4 b6) 39. Bxc4 {[%emt 0:03:17]} dxc4 {[%emt 0:00:00]} 40. Nxe6+ {[%emt 0:00:00]} fxe6 $18 {[%emt 0:00:00][%mdl 4096] Endgame KRR-KRR} 41. Rac2 {[%emt 0:00:20]} b5 {[%emt 0:01:13]} 42. axb6 $1 {[%emt 0:00:08]} Rxb6 {[%emt 0:00:07]} 43. Rxc4 {[%emt 0:00:04]} Rcb8 {[%emt 0:00:50]} 44. Rc8+ {[%emt 0:00:22]} Rxc8 {[%emt 0:00:14]} 45. Rxc8+ {[%emt 0:00:04] KR-KR} Kf7 {[%emt 0:00:28]} 46. Rc7+ {[%emt 0:00:13]} Kf8 $2 {[%emt 0:00:22]} (46... Kg8 47. Re7 h5) 47. Rxh7 {[%emt 0:00:59]} Rxb4 {[%emt 0:03:19]} 48. Kf3 {[%emt 0:00:07]} Ke8 {[%emt 0:09:52]} 49. Ra7 {[%emt 0:00:20] [#] Strongly threatening Kg4.} Rb6 {[%emt 0:00:15]} 50. Kg4 {[%emt 0:00:08]} Kd8 {[%emt 0:00:28]} 51. Kg5 {[%emt 0:00:16]} Kc8 {[%emt 0:00:08]} 52. Kxg6 {[%emt 0:01:42] Intending h4 and mate.} Kb8 {[%emt 0:00:10]} 53. Rd7 {[%emt 0:00:10] White threatens h4 and mate.} a5 {[%emt 0:01:06]} 54. h4 {[%emt 0:03:52][%cal Bh2h4,Bh4h5,Bh5h6][%mdl 32]} a4 {[%emt 0:00:10]} 55. Rd4 {[%emt 0:01:34]} (55. h5 $142 Rb3 56. h6 Rxg3+ 57. Kf6 Rh3 58. h7 Rh6+ 59. Kg5 Rh3 60. Kf6) 55... Ra6 {[%emt 0:01:53]} 56. h5 {[%emt 0:03:39] White mates.} a3 {[%emt 0:00:18]} 57. Rd1 {[%emt 0:02:02]} a2 {[%emt 0:00:17]} 58. h6 {[%emt 0:00:43]} Ra3 {[%emt 0:05:15]} 59. g4 {[%emt 0:00:41]} Ka8 {Weighted Error Value: White=0.09 (flawless) /Black=0.49} 1-0